[Event "Chessable Masters - Torneo preliminare"]
[White "Oparin, Grigoriy"]
[Black "Petrov, Nikita"]
[WhiteFideId "24125890"]
[BlackFideId "4101286"]
[WhiteElo "2650"]
[BlackElo "2514"]
[Result "1-0"]
[Round "7"]
[TimeControl "600+2"]
[Date "2023.03.13"]
[WhiteClock "0:00:51"]
[BlackClock "0:00:05"]

1. d4 {[%clk 0:10:01]}  Nf6 {[%clk 0:10:00]} 2. c4 {[%clk 0:10:02]}  e6 {[%clk 0:10:01]} 3. Nf3 {[%clk 0:10:04]}  d5 {[%clk 0:10:02]} 4. g3 {[%clk 0:10:06]}  Bb4+ {[%clk 0:10:03]} 5. Bd2 {[%clk 0:10:05]}  Be7 {[%clk 0:10:04]} 6. Bg2 {[%clk 0:10:07]}  O-O {[%clk 0:10:05]} 7. O-O {[%clk 0:10:08]}  Nbd7 {[%clk 0:10:07]} 8. Bc3 {[%clk 0:10:08]}  b6 {[%clk 0:09:59]} 9. cxd5 {[%clk 0:10:05]}  exd5 {[%clk 0:09:57]} 10. Nbd2 {[%clk 0:09:59]}  Bb7 {[%clk 0:09:58]} 11. Rc1 {[%clk 0:09:58]}  Re8 {[%clk 0:09:59]} 12. Ne5 {[%clk 0:09:44]}  c5 {[%clk 0:09:13]} 13. dxc5 {[%clk 0:09:15]}  bxc5 {[%clk 0:09:06]} 14. Nxd7 {[%clk 0:09:14]}  Nxd7 {[%clk 0:09:00]} 15. Nc4 {[%clk 0:09:08]}  Nb6 {[%clk 0:08:27]} 16. Na5 {[%clk 0:09:04]}  Ba6 {[%clk 0:08:21]} 17. Nc6 {[%clk 0:08:13]}  Qd6 {[%clk 0:08:10]} 18. Nxe7+ {[%clk 0:08:13]}  Qxe7 {[%clk 0:08:12]} 19. Re1 {[%clk 0:08:10]}  d4 {[%clk 0:06:06]} 20. Bxa8 {[%clk 0:07:47]}  dxc3 {[%clk 0:05:33]} 21. Bf3 {[%clk 0:07:47]}  cxb2 {[%clk 0:05:30]} 22. Rb1 {[%clk 0:07:47]}  Rd8 {[%clk 0:04:34]} 23. Qb3 {[%clk 0:05:13]}  Nc4 {[%clk 0:04:29]} 24. Rxb2 {[%clk 0:05:14]}  Nxb2 {[%clk 0:04:29]} 25. Qxb2 {[%clk 0:05:16]}  c4 {[%clk 0:03:45]} 26. Rc1 {[%clk 0:05:08]}  h6 {[%clk 0:03:37]} 27. h4 {[%clk 0:05:03]}  Qc5 {[%clk 0:03:35]} 28. Qc3 {[%clk 0:05:01]}  Bb5 {[%clk 0:03:31]} 29. Qa5 {[%clk 0:04:39]}  Qb6 {[%clk 0:03:32]} 30. Qb4 {[%clk 0:04:16]}  a5 {[%clk 0:02:24]} 31. Qc3 {[%clk 0:04:05]}  Ba6 {[%clk 0:02:24]} 32. Qe5 {[%clk 0:03:56]}  Qb4 {[%clk 0:01:49]} 33. e3 {[%clk 0:03:16]}  Qa3 {[%clk 0:01:36]} 34. Rc2 {[%clk 0:02:37]}  Qa4 {[%clk 0:01:37]} 35. Rb2 {[%clk 0:02:11]}  Qa3 {[%clk 0:00:48]} 36. Rb8 {[%clk 0:02:06]}  Qf8 {[%clk 0:00:47]} 37. Rb6 {[%clk 0:02:02]}  Bc8 {[%clk 0:00:45]} 38. Bd5 {[%clk 0:01:48]}  c3 {[%clk 0:00:36]} 39. e4 {[%clk 0:01:49]}  Be6 {[%clk 0:00:18]} 40. Rc6 {[%clk 0:01:25]}  Bxd5 {[%clk 0:00:18]} 41. exd5 {[%clk 0:01:26]}  Qa3 {[%clk 0:00:15]} 42. d6 {[%clk 0:01:24]}  Qxa2 {[%clk 0:00:13]} 43. d7 {[%clk 0:00:58]}  Qa3 {[%clk 0:00:05]} 44. Rc8 {[%clk 0:00:51]} 1-0


[Site "Internet"]

[Event "Chessable Masters - Torneo preliminare"]
[White "Harikrishna, Pentala"]
[Black "Terry, Renato"]
[WhiteFideId "5007003"]
[BlackFideId "3803457"]
[WhiteElo "2627"]
[BlackElo "2472"]
[Result "0-1"]
[Round "7"]
[TimeControl "600+2"]
[Date "2023.03.13"]
[WhiteClock "0:00:05"]
[BlackClock "0:00:19"]

1. Nf3 {[%clk 0:10:01]}  d5 {[%clk 0:09:39]} 2. g3 {[%clk 0:10:02]}  Nf6 {[%clk 0:09:40]} 3. Bg2 {[%clk 0:10:04]}  c6 {[%clk 0:09:41]} 4. O-O {[%clk 0:10:04]}  Bg4 {[%clk 0:09:42]} 5. h3 {[%clk 0:10:05]}  Bh5 {[%clk 0:09:43]} 6. d4 {[%clk 0:10:05]}  Nbd7 {[%clk 0:09:44]} 7. c4 {[%clk 0:10:05]}  e6 {[%clk 0:09:45]} 8. cxd5 {[%clk 0:10:05]}  cxd5 {[%clk 0:09:42]} 9. Qb3 {[%clk 0:09:59]}  Qb6 {[%clk 0:09:41]} 10. Nc3 {[%clk 0:09:59]}  Be7 {[%clk 0:09:32]} 11. Qa4 {[%clk 0:09:37]}  Bxf3 {[%clk 0:09:16]} 12. Bxf3 {[%clk 0:09:38]}  O-O {[%clk 0:09:16]} 13. e3 {[%clk 0:09:29]}  Rfc8 {[%clk 0:09:12]} 14. Qb3 {[%clk 0:09:11]}  Rc6 {[%clk 0:08:37]} 15. Bd2 {[%clk 0:09:00]}  Qxb3 {[%clk 0:08:07]} 16. axb3 {[%clk 0:09:01]}  Rb6 {[%clk 0:08:09]} 17. Bd1 {[%clk 0:07:29]}  a6 {[%clk 0:08:04]} 18. Na4 {[%clk 0:06:58]}  Rb5 {[%clk 0:07:35]} 19. Rc1 {[%clk 0:05:45]}  Kf8 {[%clk 0:07:28]} 20. f3 {[%clk 0:05:31]}  Ke8 {[%clk 0:07:25]} 21. Rf2 {[%clk 0:05:29]}  Bb4 {[%clk 0:06:55]} 22. Nc3 {[%clk 0:05:14]}  Rb6 {[%clk 0:06:52]} 23. Be1 {[%clk 0:05:11]}  Kd8 {[%clk 0:06:37]} 24. g4 {[%clk 0:05:08]}  h6 {[%clk 0:06:38]} 25. Kf1 {[%clk 0:05:02]}  Rc8 {[%clk 0:06:29]} 26. Rfc2 {[%clk 0:05:01]}  Rbc6 {[%clk 0:06:24]} 27. Bg3 {[%clk 0:04:47]}  Bd6 {[%clk 0:06:17]} 28. Bf2 {[%clk 0:04:41]}  g5 {[%clk 0:06:03]} 29. h4 {[%clk 0:04:18]}  R6c7 {[%clk 0:06:00]} 30. Be1 {[%clk 0:04:09]}  Rc6 {[%clk 0:05:35]} 31. Ne2 {[%clk 0:04:05]}  Rxc2 {[%clk 0:05:31]} 32. Rxc2 {[%clk 0:04:06]}  Rxc2 {[%clk 0:05:28]} 33. Bxc2 {[%clk 0:04:07]}  Nb8 {[%clk 0:05:25]} 34. Ng1 {[%clk 0:03:43]}  Ne8 {[%clk 0:04:56]} 35. Nh3 {[%clk 0:03:34]}  f6 {[%clk 0:04:57]} 36. f4 {[%clk 0:03:24]}  gxf4 {[%clk 0:04:56]} 37. exf4 {[%clk 0:03:03]}  Nc6 {[%clk 0:04:57]} 38. Bf2 {[%clk 0:03:03]}  Ke7 {[%clk 0:04:20]} 39. Be3 {[%clk 0:02:56]}  h5 {[%clk 0:04:11]} 40. g5 {[%clk 0:02:24]}  Bc7 {[%clk 0:03:53]} 41. f5 {[%clk 0:01:57]}  exf5 {[%clk 0:03:53]} 42. Bxf5 {[%clk 0:01:55]}  Ng7 {[%clk 0:03:54]} 43. Bg6 {[%clk 0:01:53]}  Ke6 {[%clk 0:03:24]} 44. Kf2 {[%clk 0:01:16]}  fxg5 {[%clk 0:02:39]} 45. Nxg5+ {[%clk 0:01:01]}  Kf6 {[%clk 0:02:40]} 46. Bd3 {[%clk 0:00:47]}  Bb6 {[%clk 0:02:29]} 47. Nh7+ {[%clk 0:00:29]}  Kf7 {[%clk 0:02:31]} 48. Ng5+ {[%clk 0:00:30]}  Ke7 {[%clk 0:02:32]} 49. Nf3 {[%clk 0:00:30]}  Kf6 {[%clk 0:02:20]} 50. Bh7 {[%clk 0:00:17]}  Ne6 {[%clk 0:01:58]} 51. Bg8 {[%clk 0:00:11]}  Ne7 {[%clk 0:01:54]} 52. Bg5+ {[%clk 0:00:12]}  Nxg5 {[%clk 0:01:55]} 53. hxg5+ {[%clk 0:00:13]}  Kf5 {[%clk 0:01:57]} 54. Bf7 {[%clk 0:00:12]}  h4 {[%clk 0:01:38]} 55. g6 {[%clk 0:00:10]}  Kf6 {[%clk 0:01:22]} 56. Kg2 {[%clk 0:00:12]}  Nxg6 {[%clk 0:01:18]} 57. Bxg6 {[%clk 0:00:13]}  Kxg6 {[%clk 0:01:20]} 58. Nxh4+ {[%clk 0:00:04]}  Kg5 {[%clk 0:01:21]} 59. Nf3+ {[%clk 0:00:03]}  Kf4 {[%clk 0:01:21]} 60. Kf2 {[%clk 0:00:04]}  Ke4 {[%clk 0:01:20]} 61. Ke2 {[%clk 0:00:04]}  Bxd4 {[%clk 0:01:21]} 62. Nd2+ {[%clk 0:00:03]}  Kf4 {[%clk 0:01:20]} 63. Kd3 {[%clk 0:00:04]}  Bxb2 {[%clk 0:01:21]} 64. b4 {[%clk 0:00:06]}  b6 {[%clk 0:00:41]} 65. Nb3 {[%clk 0:00:03]}  Ke5 {[%clk 0:00:38]} 66. Nd2 {[%clk 0:00:02]}  Kd6 {[%clk 0:00:37]} 67. Kc2 {[%clk 0:00:03]}  Bf6 {[%clk 0:00:37]} 68. Kb3 {[%clk 0:00:04]}  Ke6 {[%clk 0:00:35]} 69. Kc2 {[%clk 0:00:04]}  Kf5 {[%clk 0:00:34]} 70. Kd3 {[%clk 0:00:05]}  Be7 {[%clk 0:00:35]} 71. b5 {[%clk 0:00:06]}  a5 {[%clk 0:00:20]} 72. Nb3 {[%clk 0:00:07]}  Bf6 {[%clk 0:00:13]} 73. Nc1 {[%clk 0:00:06]}  Ke6 {[%clk 0:00:13]} 74. Kc2 {[%clk 0:00:05]}  Ke5 {[%clk 0:00:13]} 75. Ne2 {[%clk 0:00:04]}  Ke4 {[%clk 0:00:14]} 76. Ng3+ {[%clk 0:00:04]}  Kd4 {[%clk 0:00:15]} 77. Kb3 {[%clk 0:00:04]}  Kc5 {[%clk 0:00:16]} 78. Ka4 {[%clk 0:00:04]}  Be5 {[%clk 0:00:16]} 79. Ne2 {[%clk 0:00:03]}  d4 {[%clk 0:00:17]} 80. Nc1 {[%clk 0:00:04]}  Kc4 {[%clk 0:00:18]} 81. Nb3 {[%clk 0:00:05]}  Bf4 {[%clk 0:00:19]} 0-1


[Site "Internet"]

[Event "Chessable Masters - Torneo preliminare"]
[White "Narayanan, Srinath"]
[Black "Bachmann, Axel"]
[WhiteFideId "5018420"]
[BlackFideId "3700488"]
[WhiteElo "2482"]
[BlackElo "2618"]
[Result "0-1"]
[Round "7"]
[TimeControl "600+2"]
[Date "2023.03.13"]
[WhiteClock "0:00:10"]
[BlackClock "0:00:13"]

1. Nf3 {[%clk 0:10:01]}  Nf6 {[%clk 0:10:00]} 2. c4 {[%clk 0:10:02]}  e6 {[%clk 0:09:59]} 3. g3 {[%clk 0:10:00]}  d5 {[%clk 0:09:58]} 4. d4 {[%clk 0:10:01]}  Bb4+ {[%clk 0:09:58]} 5. Bd2 {[%clk 0:10:01]}  a5 {[%clk 0:10:00]} 6. Bg2 {[%clk 0:10:00]}  O-O {[%clk 0:09:59]} 7. O-O {[%clk 0:09:56]}  dxc4 {[%clk 0:10:00]} 8. Qc2 {[%clk 0:09:34]}  Bxd2 {[%clk 0:10:00]} 9. Nbxd2 {[%clk 0:09:29]}  b5 {[%clk 0:10:01]} 10. a4 {[%clk 0:09:26]}  c6 {[%clk 0:10:02]} 11. b3 {[%clk 0:09:27]}  cxb3 {[%clk 0:10:01]} 12. Nxb3 {[%clk 0:09:29]}  Ba6 {[%clk 0:09:57]} 13. Ne5 {[%clk 0:08:57]}  bxa4 {[%clk 0:09:50]} 14. Nc5 {[%clk 0:08:32]}  Qxd4 {[%clk 0:09:14]} 15. Nxc6 {[%clk 0:07:47]}  Nxc6 {[%clk 0:09:13]} 16. Bxc6 {[%clk 0:07:49]}  Rac8 {[%clk 0:08:42]} 17. Nxa6 {[%clk 0:06:59]}  Qb6 {[%clk 0:08:41]} 18. Qxa4 {[%clk 0:06:35]}  Qxa6 {[%clk 0:08:31]} 19. Bb5 {[%clk 0:06:33]}  Qb7 {[%clk 0:08:19]} 20. Qxa5 {[%clk 0:06:17]}  Rc5 {[%clk 0:08:00]} 21. Ba6 {[%clk 0:06:00]}  Qd5 {[%clk 0:07:40]} 22. Qb4 {[%clk 0:05:40]}  Qf5 {[%clk 0:07:15]} 23. Kg2 {[%clk 0:04:30]}  h5 {[%clk 0:06:38]} 24. Bd3 {[%clk 0:04:06]}  Qd5+ {[%clk 0:06:38]} 25. Kg1 {[%clk 0:04:03]}  Rfc8 {[%clk 0:06:34]} 26. Rfd1 {[%clk 0:03:45]}  Qe5 {[%clk 0:06:24]} 27. Ba6 {[%clk 0:03:34]}  Ra8 {[%clk 0:06:01]} 28. Qd4 {[%clk 0:02:50]}  Qc7 {[%clk 0:05:02]} 29. Bd3 {[%clk 0:02:43]}  Re8 {[%clk 0:04:53]} 30. f3 {[%clk 0:02:30]}  e5 {[%clk 0:04:50]} 31. Qa4 {[%clk 0:02:27]}  g6 {[%clk 0:02:53]} 32. Qa7 {[%clk 0:02:17]}  Qc8 {[%clk 0:02:54]} 33. Ba6 {[%clk 0:02:04]}  Qc6 {[%clk 0:02:52]} 34. Bd3 {[%clk 0:01:16]}  e4 {[%clk 0:01:53]} 35. Ra6 {[%clk 0:01:02]}  exd3 {[%clk 0:01:50]} 36. Rxc6 {[%clk 0:01:02]}  dxe2 {[%clk 0:01:52]} 37. Re1 {[%clk 0:01:02]}  Rxc6 {[%clk 0:01:53]} 38. Rxe2 {[%clk 0:00:51]}  Rc1+ {[%clk 0:01:41]} 39. Kf2 {[%clk 0:00:51]}  Rxe2+ {[%clk 0:01:42]} 40. Kxe2 {[%clk 0:00:53]}  Rc2+ {[%clk 0:01:44]} 41. Kd3 {[%clk 0:00:20]}  Rxh2 {[%clk 0:01:45]} 42. g4 {[%clk 0:00:21]}  Rh3 {[%clk 0:01:36]} 43. g5 {[%clk 0:00:21]}  Nh7 {[%clk 0:01:32]} 44. Qb8+ {[%clk 0:00:21]}  Nf8 {[%clk 0:01:33]} 45. Ke3 {[%clk 0:00:18]}  Rh1 {[%clk 0:01:30]} 46. Kf2 {[%clk 0:00:19]}  Rd1 {[%clk 0:01:26]} 47. f4 {[%clk 0:00:19]}  Rd5 {[%clk 0:01:22]} 48. Kg3 {[%clk 0:00:20]}  Rf5 {[%clk 0:01:23]} 49. Qc8 {[%clk 0:00:21]}  Kg7 {[%clk 0:01:22]} 50. Qc3+ {[%clk 0:00:22]}  Kh7 {[%clk 0:01:23]} 51. Qc7 {[%clk 0:00:10]}  Ne6 {[%clk 0:01:23]} 52. Qd7 {[%clk 0:00:11]}  Rxf4 {[%clk 0:01:22]} 53. Qe7 {[%clk 0:00:11]}  Rf5 {[%clk 0:01:22]} 54. Kh4 {[%clk 0:00:12]}  Kg7 {[%clk 0:01:22]} 55. Qa7 {[%clk 0:00:12]}  Rxg5 {[%clk 0:01:23]} 56. Qa1+ {[%clk 0:00:14]}  Kh7 {[%clk 0:01:23]} 57. Qa7 {[%clk 0:00:13]}  Rf5 {[%clk 0:01:09]} 58. Qe7 {[%clk 0:00:14]}  Kg7 {[%clk 0:01:02]} 59. Qa7 {[%clk 0:00:14]}  Rf4+ {[%clk 0:00:43]} 60. Kg3 {[%clk 0:00:16]}  h4+ {[%clk 0:00:44]} 61. Kg2 {[%clk 0:00:15]}  g5 {[%clk 0:00:42]} 62. Qa1+ {[%clk 0:00:14]}  Kg6 {[%clk 0:00:42]} 63. Qh8 {[%clk 0:00:16]}  Ng7 {[%clk 0:00:34]} 64. Qa8 {[%clk 0:00:11]}  g4 {[%clk 0:00:33]} 65. Qc6+ {[%clk 0:00:12]}  Ne6 {[%clk 0:00:34]} 66. Qc2+ {[%clk 0:00:11]}  Kg5 {[%clk 0:00:24]} 67. Qd2 {[%clk 0:00:12]}  Nd4 {[%clk 0:00:16]} 68. Qa5+ {[%clk 0:00:11]}  Nf5 {[%clk 0:00:14]} 69. Qd8+ {[%clk 0:00:12]}  Kg6 {[%clk 0:00:12]} 70. Qg8+ {[%clk 0:00:09]}  Ng7 {[%clk 0:00:13]} 71. Qd8 {[%clk 0:00:11]}  h3+ {[%clk 0:00:14]} 72. Kh2 {[%clk 0:00:09]}  Rf3 {[%clk 0:00:13]} 73. Qh4 {[%clk 0:00:07]}  f5 {[%clk 0:00:11]} 74. Qe1 {[%clk 0:00:05]}  Nh5 {[%clk 0:00:08]} 75. Qd2 {[%clk 0:00:06]}  Nf6 {[%clk 0:00:08]} 76. Qd4 {[%clk 0:00:05]}  Rb3 {[%clk 0:00:08]} 77. Qe5 {[%clk 0:00:05]}  Rd3 {[%clk 0:00:08]} 78. Qb2 {[%clk 0:00:06]}  Ne4 {[%clk 0:00:08]} 79. Qb6+ {[%clk 0:00:07]}  Rd6 {[%clk 0:00:09]} 80. Qb8 {[%clk 0:00:07]}  Rd2+ {[%clk 0:00:11]} 81. Kh1 {[%clk 0:00:07]}  g3 {[%clk 0:00:10]} 82. Qg8+ {[%clk 0:00:08]}  Kh5 {[%clk 0:00:11]} 83. Qh7+ {[%clk 0:00:09]}  Kg4 {[%clk 0:00:12]} 84. Qg6+ {[%clk 0:00:10]}  Ng5 {[%clk 0:00:13]} 85. Qb6 {[%clk 0:00:10]}  Rd1+ {[%clk 0:00:12]} 86. Qg1 {[%clk 0:00:10]}  g2+ {[%clk 0:00:13]} 0-1


[Site "Internet"]

[Event "Chessable Masters - Torneo preliminare"]
[White "Pichot, Alan"]
[Black "Pap, Gyula"]
[WhiteFideId "110973"]
[BlackFideId "725323"]
[WhiteElo "2549"]
[BlackElo "2563"]
[Result "1-0"]
[Round "7"]
[TimeControl "600+2"]
[Date "2023.03.13"]
[WhiteClock "0:02:21"]
[BlackClock "0:01:00"]

1. e4 {[%clk 0:09:58]}  e5 {[%clk 0:10:01]} 2. Nf3 {[%clk 0:09:49]}  Nc6 {[%clk 0:10:02]} 3. Bb5 {[%clk 0:09:49]}  a6 {[%clk 0:10:02]} 4. Ba4 {[%clk 0:09:50]}  Nge7 {[%clk 0:10:04]} 5. c3 {[%clk 0:09:30]}  Ng6 {[%clk 0:10:00]} 6. d4 {[%clk 0:09:26]}  exd4 {[%clk 0:10:02]} 7. cxd4 {[%clk 0:09:26]}  Bb4+ {[%clk 0:10:02]} 8. Nc3 {[%clk 0:09:23]}  d5 {[%clk 0:10:01]} 9. O-O {[%clk 0:07:05]}  dxe4 {[%clk 0:08:34]} 10. Ng5 {[%clk 0:06:39]}  O-O {[%clk 0:07:04]} 11. Bxc6 {[%clk 0:06:02]}  bxc6 {[%clk 0:07:00]} 12. Ngxe4 {[%clk 0:05:54]}  a5 {[%clk 0:05:59]} 13. a3 {[%clk 0:05:39]}  Be7 {[%clk 0:05:54]} 14. Qa4 {[%clk 0:05:31]}  Bd7 {[%clk 0:05:00]} 15. Nc5 {[%clk 0:05:27]}  Bd6 {[%clk 0:04:51]} 16. N3e4 {[%clk 0:04:56]}  Re8 {[%clk 0:04:35]} 17. Bg5 {[%clk 0:04:50]}  Qc8 {[%clk 0:04:32]} 18. Rfe1 {[%clk 0:04:45]}  h6 {[%clk 0:03:52]} 19. Bd2 {[%clk 0:04:24]}  Nh4 {[%clk 0:02:17]} 20. Nxd6 {[%clk 0:03:33]}  cxd6 {[%clk 0:01:49]} 21. Nxd7 {[%clk 0:03:35]}  Qxd7 {[%clk 0:01:50]} 22. d5 {[%clk 0:03:36]}  g5 {[%clk 0:01:31]} 23. dxc6 {[%clk 0:03:33]}  Qf5 {[%clk 0:01:32]} 24. Qd4 {[%clk 0:03:24]}  Re5 {[%clk 0:01:30]} 25. Bc3 {[%clk 0:02:54]}  Rae8 {[%clk 0:01:22]} 26. Rxe5 {[%clk 0:02:49]}  dxe5 {[%clk 0:01:06]} 27. Qd7 {[%clk 0:02:27]}  Re6 {[%clk 0:01:02]} 28. c7 {[%clk 0:02:23]}  Qe4 {[%clk 0:01:01]} 29. c8=Q+ {[%clk 0:02:23]}  Kg7 {[%clk 0:01:00]} 30. Qcb7 {[%clk 0:02:21]} 1-0


[Site "Internet"]

[Event "Chessable Masters - Torneo preliminare"]
[White "Antipov, Mikhail Al."]
[Black "Wagner, Dennis"]
[WhiteFideId "4107012"]
[BlackFideId "24650684"]
[WhiteElo "2593"]
[BlackElo "2456"]
[Result "0-1"]
[Round "7"]
[TimeControl "600+2"]
[Date "2023.03.13"]
[WhiteClock "0:00:20"]
[BlackClock "0:00:20"]

1. e4 {[%clk 0:10:01]}  e5 {[%clk 0:09:56]} 2. Nf3 {[%clk 0:10:02]}  Nc6 {[%clk 0:09:57]} 3. Bc4 {[%clk 0:10:03]}  Bc5 {[%clk 0:09:56]} 4. d3 {[%clk 0:10:04]}  Nf6 {[%clk 0:09:57]} 5. Nbd2 {[%clk 0:10:03]}  O-O {[%clk 0:09:48]} 6. c3 {[%clk 0:09:59]}  a5 {[%clk 0:09:46]} 7. h3 {[%clk 0:09:53]}  Ba7 {[%clk 0:09:21]} 8. a4 {[%clk 0:09:06]}  d6 {[%clk 0:09:13]} 9. Bb3 {[%clk 0:08:59]}  Be6 {[%clk 0:09:05]} 10. Bc2 {[%clk 0:09:00]}  d5 {[%clk 0:08:59]} 11. Qe2 {[%clk 0:08:33]}  Re8 {[%clk 0:08:44]} 12. g4 {[%clk 0:08:24]}  dxe4 {[%clk 0:08:17]} 13. dxe4 {[%clk 0:08:24]}  Nd7 {[%clk 0:08:07]} 14. Nb3 {[%clk 0:08:04]}  Ne7 {[%clk 0:07:14]} 15. Nxa5 {[%clk 0:06:46]}  Ng6 {[%clk 0:06:27]} 16. Nxb7 {[%clk 0:05:51]}  Qb8 {[%clk 0:06:20]} 17. Na5 {[%clk 0:05:52]}  Nf4 {[%clk 0:06:12]} 18. Bxf4 {[%clk 0:05:35]}  Qxb2 {[%clk 0:05:27]} 19. O-O {[%clk 0:05:22]}  exf4 {[%clk 0:05:26]} 20. Nc6 {[%clk 0:03:29]}  Qxc3 {[%clk 0:05:25]} 21. Nxa7 {[%clk 0:03:30]}  Rxa7 {[%clk 0:04:35]} 22. Rfc1 {[%clk 0:02:26]}  Bc4 {[%clk 0:04:08]} 23. Qd2 {[%clk 0:02:27]}  Qxf3 {[%clk 0:03:46]} 24. Qxd7 {[%clk 0:02:26]}  Rf8 {[%clk 0:03:30]} 25. e5 {[%clk 0:01:29]}  Bd5 {[%clk 0:03:21]} 26. Kf1 {[%clk 0:01:27]}  Qxh3+ {[%clk 0:03:06]} 27. Ke1 {[%clk 0:01:26]}  Qc3+ {[%clk 0:02:59]} 28. Kf1 {[%clk 0:01:24]}  Qh3+ {[%clk 0:01:55]} 29. Ke1 {[%clk 0:01:25]}  Bc4 {[%clk 0:01:46]} 30. Qd4 {[%clk 0:01:16]}  Ba6 {[%clk 0:01:07]} 31. Be4 {[%clk 0:00:55]}  c5 {[%clk 0:01:01]} 32. Rxc5 {[%clk 0:00:52]}  Rd7 {[%clk 0:00:46]} 33. Qxd7 {[%clk 0:00:17]}  Qf1+ {[%clk 0:00:45]} 34. Kd2 {[%clk 0:00:18]}  Qxf2+ {[%clk 0:00:47]} 35. Kd1 {[%clk 0:00:20]}  Qxc5 {[%clk 0:00:26]} 36. Rc1 {[%clk 0:00:20]}  Qe3 {[%clk 0:00:20]} 0-1


[Site "Internet"]

[Event "Chessable Masters - Torneo preliminare"]
[White "Sarana, Alexey"]
[Black "Weetik, Vjacheslav"]
[WhiteFideId "24133795"]
[BlackFideId "4153472"]
[WhiteElo "2643"]
[BlackElo "2445"]
[Result "1-0"]
[Round "7"]
[TimeControl "600+2"]
[Date "2023.03.13"]
[WhiteClock "0:04:53"]
[BlackClock "0:00:02"]

1. d4 {[%clk 0:09:56]}  Nf6 {[%clk 0:09:59]} 2. c4 {[%clk 0:09:58]}  g6 {[%clk 0:09:47]} 3. Nc3 {[%clk 0:09:59]}  Bg7 {[%clk 0:09:48]} 4. e4 {[%clk 0:10:00]}  d6 {[%clk 0:09:49]} 5. Be2 {[%clk 0:10:02]}  O-O {[%clk 0:09:49]} 6. Be3 {[%clk 0:10:04]}  c5 {[%clk 0:09:35]} 7. d5 {[%clk 0:10:05]}  e6 {[%clk 0:09:35]} 8. Nf3 {[%clk 0:10:05]}  exd5 {[%clk 0:09:34]} 9. cxd5 {[%clk 0:10:07]}  b5 {[%clk 0:08:46]} 10. e5 {[%clk 0:10:07]}  Ng4 {[%clk 0:07:38]} 11. Bg5 {[%clk 0:10:08]}  Qb6 {[%clk 0:07:33]} 12. exd6 {[%clk 0:10:07]}  a6 {[%clk 0:06:20]} 13. Be7 {[%clk 0:10:06]}  Re8 {[%clk 0:06:20]} 14. O-O {[%clk 0:10:07]}  Nd7 {[%clk 0:06:17]} 15. Nd2 {[%clk 0:09:50]}  Ngf6 {[%clk 0:05:46]} 16. Re1 {[%clk 0:09:47]}  Bb7 {[%clk 0:05:45]} 17. Bf3 {[%clk 0:09:43]}  c4 {[%clk 0:05:44]} 18. a4 {[%clk 0:09:42]}  Nc5 {[%clk 0:05:39]} 19. axb5 {[%clk 0:09:37]}  axb5 {[%clk 0:05:21]} 20. Rxa8 {[%clk 0:09:34]}  Rxa8 {[%clk 0:05:20]} 21. Qc2 {[%clk 0:09:06]}  Nd3 {[%clk 0:05:04]} 22. Rf1 {[%clk 0:09:07]}  Nd7 {[%clk 0:04:54]} 23. Nde4 {[%clk 0:09:06]}  b4 {[%clk 0:04:20]} 24. Nd1 {[%clk 0:09:06]}  N7e5 {[%clk 0:04:14]} 25. Ne3 {[%clk 0:09:01]}  Qd4 {[%clk 0:04:09]} 26. Nxc4 {[%clk 0:08:42]}  Nxc4 {[%clk 0:03:34]} 27. d7 {[%clk 0:08:41]}  Bxd5 {[%clk 0:03:21]} 28. Bf6 {[%clk 0:07:32]}  Bxf6 {[%clk 0:02:06]} 29. Nxf6+ {[%clk 0:07:34]}  Qxf6 {[%clk 0:02:08]} 30. Bxd5 {[%clk 0:07:34]}  Rd8 {[%clk 0:01:58]} 31. Qxc4 {[%clk 0:07:35]}  Nxb2 {[%clk 0:01:40]} 32. Qb5 {[%clk 0:07:24]}  Qd4 {[%clk 0:01:26]} 33. Qe2 {[%clk 0:06:57]}  Kg7 {[%clk 0:01:07]} 34. Qe8 {[%clk 0:06:55]}  Qf6 {[%clk 0:00:47]} 35. Bxf7 {[%clk 0:06:56]}  Nd3 {[%clk 0:00:42]} 36. Bc4 {[%clk 0:06:56]}  Ne5 {[%clk 0:00:38]} 37. Bb5 {[%clk 0:06:42]}  Nxd7 {[%clk 0:00:35]} 38. Qe1 {[%clk 0:06:44]}  Nb6 {[%clk 0:00:17]} 39. Qxb4 {[%clk 0:06:44]}  Nd5 {[%clk 0:00:19]} 40. Qa5 {[%clk 0:06:44]}  Rf8 {[%clk 0:00:13]} 41. g3 {[%clk 0:06:43]}  Nc3 {[%clk 0:00:12]} 42. Bc4 {[%clk 0:06:42]}  Qd4 {[%clk 0:00:11]} 43. Qc7+ {[%clk 0:06:27]}  Kh6 {[%clk 0:00:12]} 44. Qe7 {[%clk 0:06:27]}  Rf5 {[%clk 0:00:08]} 45. Be6 {[%clk 0:06:20]}  Rf6 {[%clk 0:00:06]} 46. h4 {[%clk 0:05:26]}  Ne4 {[%clk 0:00:07]} 47. g4 {[%clk 0:05:19]}  g5 {[%clk 0:00:03]} 48. Bf5 {[%clk 0:05:17]}  Rxf5 {[%clk 0:00:04]} 49. gxf5 {[%clk 0:05:19]}  g4 {[%clk 0:00:05]} 50. Qc7 {[%clk 0:04:55]}  Qd3 {[%clk 0:00:04]} 51. Qf4+ {[%clk 0:04:54]}  Kh5 {[%clk 0:00:05]} 52. Re1 {[%clk 0:04:55]}  g3 {[%clk 0:00:05]} 53. Rxe4 {[%clk 0:04:52]}  Qd1+ {[%clk 0:00:02]} 54. Kg2 {[%clk 0:04:53]} 1-0


[Site "Internet"]

[Event "Chessable Masters - Torneo preliminare"]
[White "Tari, Aryan"]
[Black "Bortnyk, Olexandr"]
[WhiteFideId "1510045"]
[BlackFideId "14120828"]
[WhiteElo "2539"]
[BlackElo "2643"]
[Result "1-0"]
[Round "7"]
[TimeControl "600+2"]
[Date "2023.03.13"]
[WhiteClock "0:00:36"]
[BlackClock "0:01:24"]

1. e4 {[%clk 0:10:01]}  Nf6 {[%clk 0:10:00]} 2. e5 {[%clk 0:10:00]}  Nd5 {[%clk 0:10:01]} 3. d4 {[%clk 0:10:01]}  d6 {[%clk 0:10:03]} 4. Nf3 {[%clk 0:10:02]}  dxe5 {[%clk 0:10:04]} 5. Nxe5 {[%clk 0:10:03]}  c6 {[%clk 0:10:06]} 6. Bc4 {[%clk 0:09:11]}  Nd7 {[%clk 0:10:05]} 7. Nf3 {[%clk 0:09:12]}  N7f6 {[%clk 0:10:05]} 8. O-O {[%clk 0:09:10]}  Bf5 {[%clk 0:10:00]} 9. Re1 {[%clk 0:08:58]}  e6 {[%clk 0:10:01]} 10. Bf1 {[%clk 0:08:55]}  Bd6 {[%clk 0:09:45]} 11. h3 {[%clk 0:08:55]}  O-O {[%clk 0:09:45]} 12. Nh4 {[%clk 0:08:25]}  Ne4 {[%clk 0:08:57]} 13. Nxf5 {[%clk 0:07:51]}  exf5 {[%clk 0:08:59]} 14. Qf3 {[%clk 0:07:33]}  Qf6 {[%clk 0:08:11]} 15. Nc3 {[%clk 0:06:38]}  Ndxc3 {[%clk 0:07:54]} 16. bxc3 {[%clk 0:06:39]}  Rfe8 {[%clk 0:07:51]} 17. a4 {[%clk 0:04:27]}  g6 {[%clk 0:07:15]} 18. Bb2 {[%clk 0:04:00]}  Re7 {[%clk 0:06:49]} 19. Bd3 {[%clk 0:03:42]}  Ng5 {[%clk 0:06:47]} 20. Qd1 {[%clk 0:03:42]}  Rae8 {[%clk 0:06:36]} 21. Rxe7 {[%clk 0:03:40]}  Rxe7 {[%clk 0:06:25]} 22. c4 {[%clk 0:03:32]}  Nxh3+ {[%clk 0:06:16]} 23. gxh3 {[%clk 0:03:30]}  Qg5+ {[%clk 0:06:17]} 24. Kh1 {[%clk 0:03:20]}  Qf4 {[%clk 0:03:45]} 25. Qg1 {[%clk 0:03:19]}  Bc7 {[%clk 0:03:06]} 26. d5 {[%clk 0:02:47]}  h5 {[%clk 0:02:35]} 27. Bf6 {[%clk 0:02:40]}  Re8 {[%clk 0:02:29]} 28. Qg2 {[%clk 0:01:35]}  Qd2 {[%clk 0:02:12]} 29. Rg1 {[%clk 0:01:24]}  Re1 {[%clk 0:02:06]} 30. Qf3 {[%clk 0:00:53]}  Kh7 {[%clk 0:01:24]} 31. Qxh5+ {[%clk 0:00:36]} 1-0


[Site "Internet"]